lending/lending_fUSD_20250122
["ID","MTS","AMOUNT","RATE_DAILY","PERIOD"]
[350002997,1737561046016,-1403.3,0.00021187,2]
[350002999,1737561046026,-3164.3,0.00021187,2]
[350003001,1737561046036,-1386.72,0.00021187,2]
[350003003,1737561046046,-1193.04,0.00021187,2]
[350003005,1737561046055,-3400.47,0.00021187,2]
[350003007,1737561046065,-150.0,0.0002119,2]
[350003009,1737561046074,-150.0,0.0002119,2]
[350003011,1737561046083,-47762.36576115,0.000212,2]
[350003013,1737561046092,-100409.39153426,0.000212,2]
[350003015,1737561046102,-150.0,0.00021201,2]
[350003017,1737561046111,-8007.36919358,0.00021203,2]
[350003019,1737561046120,-150.0,0.00021206,2]
[350003021,1737561046130,-206.07062006,0.00021208,2]
[350003023,1737561046139,-500.0,0.00021229,2]
[350003025,1737561046148,-150.0,0.00021232,2]
[350003035,1737561046307,-197.08282277,0.00021233,2]
[350003036,1737561046318,-500.0,0.00021236,2]
[350003037,1737561046327,-500.0,0.00021236,2]
[350003038,1737561046337,-500.0,0.00021236,2]
[350003039,1737561046346,-814.27,0.00021236,2]
[350003040,1737561046355,-699.56,0.00021236,2]
[350003041,1737561046364,-544.6,0.00021236,2]
[350003042,1737561046374,-938.57,0.00021236,2]
[350003043,1737561046384,-500.0,0.00021236,2]
[350003044,1737561046393,-500.0,0.00021236,2]
[350003045,1737561046403,-500.0,0.00021236,2]
[350003046,1737561046412,-500.0,0.00021236,2]
[350003047,1737561046422,-500.0,0.00021236,2]
[350003048,1737561046431,-701.97,0.00021236,2]
[350003049,1737561046441,-500.0,0.00021236,2]
[350003050,1737561046451,-714.1,0.00021236,2]
[350003051,1737561046465,-933.3,0.00021236,2]
[350003052,1737561046474,-797.67,0.00021236,2]
[350003053,1737561046484,-500.0,0.00021236,2]
[350003054,1737561046493,-500.0,0.00021236,2]
[350003055,1737561046503,-500.0,0.00021236,2]
[350003056,1737561046512,-500.0,0.00021236,2]
[350003057,1737561046521,-500.0,0.00021236,2]
[350003058,1737561046530,-387.1072805,0.00021236,2]
[350003059,1737561046540,-206.96662202,0.00021236,2]
[350003060,1737561046549,-500.0,0.00021236,2]
[350003061,1737561046559,-500.0,0.00021236,2]
[350003062,1737561046568,-500.0,0.00021236,2]
[350003063,1737561046577,-500.0,0.00021236,2]
[350003064,1737561046587,-500.0,0.00021236,2]
[350003065,1737561046596,-500.0,0.00021236,2]
[350003066,1737561046606,-571.76,0.00021236,2]
[350003067,1737561046615,-500.0,0.00021236,2]
[350003068,1737561046625,-868.43,0.00021236,2]
[350003069,1737561046634,-500.0,0.00021236,2]
[350003070,1737561046644,-1041.14,0.00021236,2]
[350003071,1737561046653,-500.0,0.00021236,2]
[350003072,1737561046663,-1007.77,0.00021236,2]
[350003073,1737561046672,-500.0,0.00021236,2]
[350003074,1737561046681,-500.0,0.00021236,2]
[350003075,1737561046691,-814.19,0.00021236,2]
[350003076,1737561046700,-500.0,0.00021236,2]
[350003077,1737561046713,-500.0,0.00021236,2]
[350003078,1737561046723,-363.54910108,0.00021236,2]
[350003079,1737561046732,-500.0,0.00021236,2]
[350003080,1737561046741,-1169.53,0.00021236,2]
[350003081,1737561046751,-500.0,0.00021236,2]
[350003082,1737561046760,-503.91,0.00021236,2]
[350003084,1737561046770,-500.0,0.00021236,2]
[350003086,1737561046779,-500.0,0.00021236,2]
[350003088,1737561046788,-500.0,0.00021236,2]
[350003090,1737561046797,-500.0,0.00021236,2]
[350003092,1737561046806,-500.0,0.00021236,2]
[350003094,1737561046815,-500.0,0.00021236,2]
[350003095,1737561046825,-500.0,0.00021236,2]
[350003096,1737561046838,-868.31,0.00021236,2]
[350003097,1737561046847,-936.05,0.00021236,2]
[350003098,1737561046856,-943.02,0.00021236,2]
[350003099,1737561046865,-710.57,0.00021236,2]
[350003100,1737561046875,-500.0,0.00021236,2]
[350003101,1737561046884,-740.49,0.00021236,2]
[350003103,1737561046893,-849.79,0.00021236,2]
[350003104,1737561046903,-500.0,0.00021236,2]
[350003106,1737561046912,-500.0,0.00021236,2]
[350003108,1737561046922,-729.86,0.00021236,2]
[350003110,1737561046931,-1325.49,0.00021236,2]
[350003112,1737561046940,-500.0,0.00021236,2]
[350003114,1737561046950,-248.29410618,0.00021236,2]
[350003116,1737561046961,-736.4,0.00021236,2]
[350003118,1737561046972,-1313.17,0.00021236,2]
[350003120,1737561046981,-756.94,0.00021236,2]
[350003122,1737561046990,-500.0,0.00021236,2]
[350003124,1737561047000,-889.45,0.00021236,2]
[350003126,1737561047010,-1671.82,0.00021236,2]
[350003128,1737561047019,-293.3843614,0.00021236,2]
[350003130,1737561047029,-869.43,0.00021236,2]
[350003132,1737561047039,-1219.9,0.00021236,2]
[350003134,1737561047048,-500.0,0.00021236,2]
[350003136,1737561047057,-1936.2,0.00021236,2]
[350003138,1737561047066,-1090.25,0.00021236,2]
[350003140,1737561047075,-2282.81,0.00021236,2]
[350003142,1737561047084,-857.24,0.00021236,2]
[350003144,1737561047094,-3260.25,0.00021236,2]
[350003146,1737561047103,-745.37,0.00021236,2]
[350003148,1737561047112,-1183.05,0.00021236,2]
[350003150,1737561047122,-500.0,0.00021236,2]
[350003152,1737561047131,-500.0,0.00021236,2]
[350003154,1737561047140,-3734.26,0.00021236,2]
[350003156,1737561047149,-1914.34,0.00021236,2]
[350003158,1737561047160,-500.0,0.00021236,2]
[350003160,1737561047169,-1244.09,0.00021236,2]
[350003162,1737561047179,-500.0,0.00021236,2]
[350003164,1737561047187,-500.0,0.00021236,2]
[350003166,1737561047197,-1115.53,0.00021236,2]
[350003168,1737561047209,-500.0,0.00021236,2]
[350003170,1737561047218,-500.0,0.00021236,2]
[350003172,1737561047227,-461.26,0.00021236,2]
[350003174,1737561047236,-500.0,0.00021236,2]
[350003176,1737561047247,-567.71,0.00021236,2]
[350003178,1737561047256,-500.0,0.00021236,2]
[350003180,1737561047266,-832.91,0.00021236,2]
[350003182,1737561047275,-1500.31,0.00021236,2]
[350003184,1737561047285,-1782.64,0.00021236,2]
[350003186,1737561047294,-1058.45,0.00021236,2]
[350003188,1737561047303,-638.44,0.00021236,2]
[350003190,1737561047312,-643.14601914,0.00021237,2]
[350003192,1737561047321,-1472.99,0.00021237,2]
[350003194,1737561047330,-500.0,0.00021237,2]
[350003196,1737561047340,-1783.97,0.00021237,2]
[350003198,1737561047349,-500.0,0.00021237,2]
[350003200,1737561047358,-528.70322812,0.00021237,2]
[350003202,1737561047368,-1904.35,0.00021237,2]
[350003204,1737561047377,-998.26,0.00021237,2]
[350003206,1737561047386,-500.0,0.00021237,2]
[350003208,1737561047395,-500.0,0.00021237,2]
[350003210,1737561047404,-596.92,0.00021237,2]
[350003212,1737561047413,-1051.03,0.00021237,2]
[350003214,1737561047422,-926.05,0.00021237,2]
[350003216,1737561047431,-500.0,0.00021237,2]
[350003218,1737561047440,-1132.52,0.00021237,2]
[350003220,1737561047450,-1471.28,0.00021237,2]
[350003222,1737561047462,-949.56,0.00021237,2]
[350003224,1737561047471,-1416.28,0.00021237,2]
[350003226,1737561047481,-3083.91,0.00021237,2]
[350003228,1737561047490,-6269.62,0.00021237,2]
[350003230,1737561047499,-1023.62,0.00021237,2]
[350003232,1737561047509,-1023.89,0.00021237,2]
[350003234,1737561047519,-2317.93,0.00021237,2]
[350003236,1737561047528,-500.0,0.00021237,2]
[350003238,1737561047538,-1042.11,0.00021237,2]
[350003240,1737561047548,-1189.2,0.00021237,2]
[350003242,1737561047557,-1322.9,0.00021237,2]
[350003244,1737561047567,-500.0,0.00021237,2]
[350003246,1737561047576,-1000.0,0.00021237,2]
[350003248,1737561047586,-1209.14,0.00021237,2]
[350003250,1737561047595,-500.0,0.00021237,2]
[350003252,1737561047604,-2059.96,0.00021237,2]
[350003254,1737561047614,-500.0,0.00021238,2]
[350003256,1737561047623,-500.0,0.00021238,2]
[350003258,1737561047632,-500.0,0.00021238,2]
[350003260,1737561047642,-500.0,0.00021238,2]
[350003262,1737561047652,-321.96,0.00021238,2]
[350003264,1737561047661,-500.0,0.00021238,2]
[350003266,1737561047671,-500.0,0.00021238,2]
[350003268,1737561047680,-500.0,0.00021238,2]
[350003270,1737561047690,-500.0,0.00021238,2]
[350003272,1737561047700,-500.0,0.00021238,2]
[350003274,1737561047712,-500.0,0.00021238,2]
[350003276,1737561047722,-500.0,0.00021238,2]
[350003278,1737561047733,-500.0,0.00021238,2]
[350003280,1737561047743,-500.0,0.00021238,2]
[350003282,1737561047753,-500.0,0.00021238,2]
[350003284,1737561047764,-500.0,0.00021238,2]
[350003286,1737561047780,-500.0,0.00021238,2]
[350003287,1737561047791,-500.0,0.00021238,2]
[350003289,1737561047802,-500.0,0.00021238,2]
[350003291,1737561047813,-503.65227841,0.00021238,2]
[350003293,1737561047824,-500.0,0.00021238,2]
[350003295,1737561047836,-500.0,0.00021238,2]
[350003297,1737561047848,-500.0,0.00021238,2]
[350003299,1737561047860,-520.76310387,0.00021238,2]
[350003301,1737561047870,-531.6551591,0.00021238,2]
[350003304,1737561047885,-644.33356163,0.00021238,2]
[350003306,1737561047897,-500.0,0.00021238,2]
[350003307,1737561047907,-500.0,0.00021238,2]
[350003309,1737561047918,-500.0,0.00021238,2]
[350003311,1737561047928,-500.0,0.00021238,2]
[350003313,1737561047940,-500.0,0.00021238,2]
[350003315,1737561047951,-500.0,0.00021238,2]
[350003317,1737561047964,-571.11,0.00021238,2]
[350003319,1737561047975,-255.03010953,0.00021238,2]
[350003321,1737561047987,-500.0,0.00021238,2]
[350003323,1737561047997,-500.0,0.00021238,2]
[350003325,1737561048008,-524.87,0.00021238,2]
[350003327,1737561048018,-500.0,0.00021238,2]
[350003329,1737561048028,-500.0,0.00021238,2]
[350003331,1737561048038,-575.83,0.00021238,2]
[350003333,1737561048048,-500.0,0.00021238,2]
[350003334,1737561048057,-500.0,0.00021238,2]
[350003335,1737561048067,-500.0,0.00021238,2]
[350003336,1737561048076,-570.68,0.00021238,2]
[350003337,1737561048087,-500.0,0.00021238,2]
[350003338,1737561048098,-500.0,0.00021238,2]
[350003339,1737561048107,-500.0,0.00021238,2]
[350003341,1737561048117,-500.0,0.00021238,2]
[350003343,1737561048128,-500.0,0.00021238,2]
[350003345,1737561048138,-500.0,0.00021238,2]
[350003347,1737561048150,-500.0,0.00021238,2]
[350003349,1737561048163,-500.0,0.00021238,2]
[350003351,1737561048175,-519.71,0.00021238,2]
[350003353,1737561048185,-397.45126738,0.00021238,2]
[350003355,1737561048195,-500.0,0.00021238,2]
[350003357,1737561048205,-500.0,0.00021238,2]
[350003359,1737561048217,-730.26,0.00021238,2]
[350003361,1737561048226,-500.0,0.00021238,2]
[350003363,1737561048236,-500.0,0.00021238,2]
[350003365,1737561048246,-500.0,0.00021238,2]
[350003367,1737561048255,-500.0,0.00021238,2]
[350003369,1737561048265,-589.51,0.00021238,2]
[350003371,1737561048274,-500.0,0.00021238,2]
[350003373,1737561048284,-500.0,0.00021238,2]
[350003375,1737561048293,-500.0,0.00021238,2]
[350003377,1737561048302,-500.0,0.00021238,2]
[350003379,1737561048312,-500.0,0.00021238,2]
[350003381,1737561048321,-500.0,0.00021238,2]
[350003383,1737561048330,-500.0,0.00021238,2]
[350003385,1737561048339,-500.0,0.00021238,2]
[350003387,1737561048349,-500.0,0.00021238,2]
[350003389,1737561048358,-500.0,0.00021238,2]
[350003391,1737561048368,-500.0,0.00021238,2]
[350003393,1737561048377,-500.0,0.00021238,2]
[350003395,1737561048387,-500.0,0.00021238,2]
[350003397,1737561048397,-500.0,0.00021238,2]
[350003399,1737561048406,-500.0,0.00021238,2]
[350003401,1737561048416,-500.0,0.00021238,2]
[350003402,1737561048425,-500.0,0.00021238,2]
[350003405,1737561048435,-500.0,0.00021238,2]
[350003406,1737561048444,-500.0,0.00021238,2]
[350003409,1737561048454,-500.0,0.00021238,2]
[350003411,1737561048466,-500.0,0.00021238,2]
[350003412,1737561048476,-624.65,0.00021238,2]
[350003415,1737561048486,-500.0,0.00021238,2]
[350003416,1737561048496,-500.0,0.00021238,2]
[350003418,1737561048506,-500.0,0.00021238,2]
[350003420,1737561048515,-601.86,0.00021238,2]
[350003422,1737561048524,-500.0,0.00021238,2]
[350003424,1737561048533,-808.95,0.00021238,2]
[350003426,1737561048543,-1002.72,0.00021238,2]
[350003428,1737561048552,-598.37,0.00021238,2]
[350003430,1737561048561,-500.0,0.00021238,2]
[350003432,1737561048571,-500.0,0.00021238,2]
[350003434,1737561048580,-414.90060647,0.00021238,2]
[350003436,1737561048590,-500.0,0.00021238,2]
[350003438,1737561048600,-500.0,0.00021238,2]
[350003440,1737561048609,-500.0,0.00021238,2]
[350003442,1737561048618,-500.0,0.00021238,2]
[350003444,1737561048627,-500.0,0.00021238,2]
[350003446,1737561048637,-500.0,0.00021238,2]
[350003448,1737561048646,-500.0,0.00021238,2]
[350003450,1737561048656,-500.0,0.00021238,2]
[350003452,1737561048666,-500.0,0.00021238,2]
[350003454,1737561048678,-500.0,0.00021238,2]
[350003456,1737561048687,-1011.66,0.00021238,2]
[350003458,1737561048696,-500.0,0.00021238,2]
[350003460,1737561048709,-615.56,0.00021238,2]
[350003462,1737561048719,-687.52,0.00021238,2]
[350003464,1737561048729,-179.99,0.00021238,2]
[350003466,1737561048739,-907.1,0.00021238,2]
[350003468,1737561048748,-500.0,0.00021238,2]
[350003470,1737561048758,-500.0,0.00021238,2]
[350003472,1737561048767,-500.0,0.00021238,2]
[350003474,1737561048777,-500.0,0.00021238,2]
[350003476,1737561048788,-537.72193533,0.00021238,2]
[350003478,1737561048800,-500.0,0.00021238,2]
[350003480,1737561048810,-500.0,0.00021238,2]
[350003482,1737561048820,-500.0,0.00021238,2]
[350003484,1737561048829,-500.0,0.00021238,2]
[350003486,1737561048843,-500.0,0.00021238,2]
[350003487,1737561048852,-500.0,0.00021238,2]
[350003488,1737561048862,-560.71,0.00021238,2]
[350003489,1737561048872,-500.0,0.00021238,2]
[350003490,1737561048883,-500.0,0.00021238,2]
[350003491,1737561048892,-500.0,0.00021238,2]
[350003492,1737561048902,-500.0,0.00021238,2]
[350003493,1737561048912,-597.04,0.00021238,2]
[350003494,1737561048922,-500.0,0.00021238,2]
[350003495,1737561048938,-611.17,0.00021238,2]
[350003496,1737561048948,-500.0,0.00021238,2]
[350003497,1737561048959,-500.0,0.00021238,2]
[350003498,1737561048969,-500.0,0.00021238,2]
[350003499,1737561048978,-581.22,0.00021238,2]
[350003500,1737561048988,-500.0,0.00021238,2]
[350003501,1737561048998,-915.57,0.00021238,2]
[350003502,1737561049008,-500.0,0.00021238,2]
[350003503,1737561049018,-500.0,0.00021238,2]
[350003504,1737561049028,-500.0,0.00021238,2]
[350003505,1737561049037,-500.0,0.00021239,2]
[350003506,1737561049046,-1096.36,0.00021239,2]
[350003507,1737561049056,-500.0,0.00021239,2]
[350003508,1737561049065,-1023.68,0.00021239,2]
[350003509,1737561049075,-846.45,0.00021239,2]
[350003510,1737561049084,-500.0,0.00021239,2]
[350003511,1737561049093,-500.0,0.00021239,2]
[350003512,1737561049103,-500.0,0.00021239,2]
[350003513,1737561049113,-500.0,0.00021239,2]
[350003514,1737561049122,-758.97,0.00021239,2]
[350003515,1737561049131,-500.0,0.00021239,2]
[350003516,1737561049141,-500.0,0.00021239,2]
[350003517,1737561049151,-504.85,0.00021239,2]
[350003518,1737561049160,-593.05,0.00021239,2]
[350003519,1737561049170,-500.0,0.00021239,2]
[350003520,1737561049180,-150.0,0.0002124,2]
[350003521,1737561049189,-4120.59602912,0.00021241,2]
[350003522,1737561049199,-150.0,0.00021243,2]
[350003523,1737561049209,-206.07062006,0.00021246,2]
[350003524,1737561049218,-8007.36919358,0.00021251,2]
[350003525,1737561049228,-1000.0,0.00021258,2]
[350003526,1737561049238,-150.0,0.00021259,2]
[350003527,1737561049247,-150.0,0.00021264,2]
[350003528,1737561049256,-150.0,0.00021264,2]
[350003529,1737561049266,-352.78032646,0.00021264,2]
[350003530,1737561049275,-150.0,0.00021271,2]
[350003531,1737561049287,-150.0,0.00021272,2]
[350003532,1737561049299,-500.0,0.00021273,2]
[350003533,1737561049308,-621.35795537,0.00021273,2]
[350003534,1737561049318,-500.0,0.00021273,2]
[350003535,1737561049328,-501.82071939,0.00021273,2]
[350003536,1737561049338,-206.71284484,0.00021273,2]
[350003537,1737561049347,-150.0,0.00021276,2]
[350003538,1737561049357,-150.0,0.0002128,2]
[350003539,1737561049366,-206.07062006,0.00021285,2]
[350003540,1737561049376,-150.0,0.00021285,2]
[350003541,1737561049385,-150.0,0.00021289,2]
[350003542,1737561049395,-150.0,0.00021292,2]
[350003543,1737561049404,-150.0,0.00021292,2]
[350003544,1737561049413,-1000.0,0.00021293,2]
[350003545,1737561049423,-1000.0,0.00021293,2]
[350003546,1737561049432,-1000.0,0.00021293,2]
[350003547,1737561049442,-1000.0,0.00021293,2]
[350003548,1737561049451,-1000.0,0.00021293,2]
[350003549,1737561049464,-1000.0,0.00021293,2]
[350003550,1737561049474,-1000.0,0.00021293,2]
[350003551,1737561049484,-1000.0,0.00021293,2]
[350003552,1737561049493,-1000.0,0.00021293,2]
[350003553,1737561049503,-1000.0,0.00021293,2]
[350003554,1737561049513,-1000.0,0.00021293,2]
[350003555,1737561049522,-389.6125312,0.000213,2]
[350003556,1737561049532,-193.11044004,0.000213,3]
[350003557,1737561049542,-4120.59602912,0.000213,2]
[350003558,1737561049552,-8007.36919358,0.000213,2]
[350003559,1737561049562,-231.0,0.000213,2]
[350003560,1737561049572,-150.0,0.00021301,2]
[350003561,1737561049581,-150.0,0.00021309,2]
[350003562,1737561049591,-150.0,0.00021309,2]
[350003563,1737561049601,-150.0,0.0002131,2]
[350003564,1737561049732,-317.71261593,0.00021311,2]
[350003565,1737561049767,-150.0,0.00021313,2]
[350003566,1737561049777,-206.07062006,0.00021323,2]
[350003567,1737561049787,-150.0,0.00021327,2]
[350003568,1737561049797,-150.0,0.00021328,2]
[350003569,1737561049806,-150.0,0.00021339,2]
[350003570,1737561049816,-150.61,0.00021342,2]
[350003571,1737561049826,-150.0,0.00021343,2]
[350003572,1737561049836,-25171.38591743,0.00021344,5]
[350003573,1737561049848,-150.0,0.00021346,2]
[350003574,1737561049858,-150.0,0.0002135,2]
[350003575,1737561049868,-150.0,0.00021352,2]
[350003576,1737561049878,-785.44,0.00021355,2]
[350003577,1737561049888,-150.0,0.00021358,2]
[350003578,1737561049898,-206.07062006,0.00021362,2]
[350003579,1737561049908,-323.65598606,0.00021373,2]
[350003580,1737561049918,-151.93736972,0.00021373,2]
[350003581,1737561049932,-500.58072799,0.00021373,2]
[350003582,1737561049943,-150.0,0.00021376,2]
[350003583,1737561049952,-2065.0,0.00021377,2]
[350003584,1737561049965,-1946.4887526,0.00021378,2]
[350003585,1737561049975,-150.0,0.00021391,2]
[350003586,1737561049984,-500.0,0.00021391,2]
[350003587,1737561049994,-352.78032646,0.00021391,2]
[350003588,1737561050004,-16272.6501183,0.00021392,2]
[350003589,1737561050014,-1754.1409543,0.00021392,2]
[350003590,1737561050025,-7651.1989434,0.00021392,2]
[350003591,1737561050035,-180.0052096,0.00021392,2]
[350003592,1737561050046,-150.0,0.00021395,2]
[350003593,1737561050056,-6034.09719151,0.00021396,2]
[350003594,1737561050067,-424.33663619,0.00021397,4]
[350003595,1737561050078,-150.0,0.00021397,4]
[350003596,1737561050088,-150.85491733,0.00021397,4]
[350003597,1737561050098,-150.38421344,0.00021397,4]
[350003598,1737561050108,-217.07278203,0.00021397,4]
[350003599,1737561050118,-150.0,0.00021397,4]
[350003600,1737561050127,-150.0,0.00021397,4]
[350003601,1737561050138,-150.22310728,0.00021397,4]
[350003602,1737561050149,-150.0,0.00021397,4]
[350003603,1737561050159,-547.1,0.00021399,2]
[350003604,1737561050170,-500.0,0.00021399,2]
[350003605,1737561050180,-999.0,0.00021399,2]
[350003606,1737561050191,-225076.82991332,0.000214,2]
[350003607,1737561050201,-810335.71300758,0.000214,2]
[350003608,1737561050219,-1000000.0,0.000214,2]
[350003609,1737561050229,-1000000.0,0.000214,2]
[350003610,1737561050239,-914395.99020904,0.000214,2]
[350003611,1737561050250,-1721934.67125789,0.000214,2]
[350003612,1737561050260,-4636.55,0.000214,2]
[350003613,1737561050270,-1781.23,0.000214,2]
[350003614,1737561050281,-31410.33487861,0.000214,2]
[350003615,1737561050291,-1034309.79426234,0.000214,2]
[350003616,1737561050301,-402.07481143,0.000214,2]
[350003617,1737561050312,-241.24488686,0.000214,2]
[350003618,1737561050322,-167.744419,0.000214,2]
[350003619,1737561050332,-150.0,0.000214,2]
[350003620,1737561050342,-151.0,0.000214,2]
[350003621,1737561050351,-151.0,0.000214,2]
[350003622,1737561050362,-151.0,0.000214,2]
[350003623,1737561050372,-271.18352,0.000214,2]
[350003624,1737561050382,-151.0,0.000214,2]
[350003625,1737561050392,-151.0,0.000214,2]
[350003626,1737561050402,-151.0,0.000214,2]
[350003627,1737561050412,-151.0,0.000214,2]
[350003628,1737561050422,-151.0,0.000214,2]
[350003629,1737561050432,-151.0,0.000214,2]
[350003630,1737561050442,-151.0,0.000214,2]
[350003631,1737561050451,-151.0,0.000214,2]
[350003632,1737561050465,-151.0,0.000214,2]
[350003633,1737561050475,-151.0,0.000214,2]
[350003634,1737561050486,-151.0,0.000214,2]
[350003635,1737561050496,-151.0,0.000214,2]
[350003636,1737561050507,-209.540605,0.000214,2]
[350003637,1737561050516,-151.0,0.000214,2]
[350003638,1737561050527,-151.0,0.000214,2]
[350003639,1737561050537,-151.0,0.000214,2]
[350003640,1737561050547,-151.0,0.000214,2]
[350003641,1737561050558,-225.96,0.000214,2]
[350003642,1737561050568,-178.402075,0.000214,2]
[350003643,1737561050578,-151.0,0.000214,2]
[350003644,1737561050588,-151.0,0.000214,2]
[350003645,1737561050598,-165.121161,0.000214,2]
[350003646,1737561050608,-206.283695,0.000214,2]
[350003647,1737561050618,-206.283695,0.000214,2]
[350003648,1737561050628,-206.283695,0.000214,2]
[350003649,1737561050638,-206.283695,0.000214,2]
[350003650,1737561050648,-206.283695,0.000214,2]
[350003651,1737561050658,-206.283695,0.000214,2]
[350003652,1737561050668,-206.283695,0.000214,2]
[350003653,1737561050677,-206.283695,0.000214,2]
[350003654,1737561050687,-206.283695,0.000214,2]
[350003655,1737561050696,-206.283695,0.000214,2]
[350003656,1737561050705,-154.032187,0.000214,2]
[350003657,1737561050719,-151.0,0.000214,2]
[350003658,1737561050728,-151.0,0.000214,2]
[350003659,1737561050738,-151.0,0.000214,2]
[350003660,1737561050747,-194.364232,0.000214,2]
[350003661,1737561050757,-151.0,0.000214,2]
[350003662,1737561050767,-151.0,0.000214,2]
[350003663,1737561050777,-173.76229,0.000214,2]
[350003664,1737561050787,-151.0,0.000214,2]
[350003665,1737561050796,-151.0,0.000214,2]
[350003666,1737561050806,-272.855596,0.000214,2]
[350003667,1737561050816,-500.0,0.000214,2]
[350003668,1737561050825,-150.10418236,0.000214,2]
[350003669,1737561050840,-151.0,0.000214,2]
[350003670,1737561050854,-158.085012,0.000214,2]
[350003671,1737561050864,-334.337677,0.000214,2]
[350003672,1737561050876,-334.337677,0.000214,2]
[350003673,1737561050885,-334.337677,0.000214,2]
[350003674,1737561050896,-334.337677,0.000214,2]
[350003675,1737561050913,-334.337677,0.000214,2]
[350003676,1737561050925,-334.337677,0.000214,2]
[350003677,1737561050936,-334.337677,0.000214,2]
[350003678,1737561050946,-334.337677,0.000214,2]
[350003679,1737561050956,-334.337677,0.000214,2]
[350003680,1737561050968,-334.337677,0.000214,2]
[350003681,1737561050978,-334.337677,0.000214,2]
[350003682,1737561050988,-334.337677,0.000214,2]
[350003683,1737561050998,-151.0,0.000214,2]
[350003684,1737561051009,-151.0,0.000214,2]
[350003685,1737561051019,-152.274587,0.000214,2]
[350003686,1737561051029,-152.282987,0.000214,2]
[350003687,1737561051039,-151.0,0.000214,2]
[350003688,1737561051049,-151.0,0.000214,2]
[350003689,1737561051058,-230.156174,0.000214,2]
[350003690,1737561051068,-151.0,0.000214,2]
[350003691,1737561051078,-151.0,0.000214,2]
[350003692,1737561051087,-151.0,0.000214,2]
[350003693,1737561051097,-151.0,0.000214,2]
[350003694,1737561051106,-151.0,0.000214,2]
[350003695,1737561051116,-151.0,0.000214,2]
[350003696,1737561051125,-151.0,0.000214,2]
[350003697,1737561051135,-194.853145,0.000214,2]
[350003698,1737561051144,-194.853145,0.000214,2]
[350003699,1737561051154,-194.853145,0.000214,2]
[350003700,1737561051163,-194.853145,0.000214,2]
[350003701,1737561051173,-194.853145,0.000214,2]
[350003702,1737561051183,-3000.0,0.000214,2]
[350003703,1737561051192,-194.853145,0.000214,2]
[350003704,1737561051202,-194.853145,0.000214,2]
[350003705,1737561051214,-196.425817,0.000214,2]
[350003706,1737561051223,-194.853145,0.000214,2]
[350003707,1737561051233,-194.853145,0.000214,2]
[350003708,1737561051243,-194.853145,0.000214,2]
[350003709,1737561051252,-196.425817,0.000214,2]
[350003710,1737561051262,-194.853145,0.000214,2]
[350003711,1737561051272,-196.425817,0.000214,2]
[350003712,1737561051281,-194.853145,0.000214,2]
[350003713,1737561051292,-196.425817,0.000214,2]